{"text_format":"3","workbook":"xlsx","n_sheets":1,"sheets":["PRICING SCHEDULE"],"not_rendered":{"images":1,"defined_names":2},"read":"whole","date_system":"1900"}

{"sheet":"PRICING SCHEDULE","index":0,"n_rows":43,"n_cols":17,"rows_kept":43,"merged":[[12,2,12,3],[13,2,13,3],[13,5,15,5],[14,2,14,3],[15,2,15,3],[17,4,17,6],[17,7,17,9],[17,10,17,12],[39,1,42,1],[39,2,39,3],[39,4,39,5],[40,2,40,3],[41,2,41,3],[41,4,41,5],[42,2,42,3],[42,4,42,5]]}
[null,"SUPPLY CHAIN MANAGEMENT"]
[null,"Pricing schedule"]
["RFB No",1065]
["RFB Title","Provision of Office Cleaning and Sanitary Services at SITA WC office for a period of two (2) years."]
["Bidder Name "]
[]
["1. INSTRUCTION FOR COMPLETING THE PRICING SCHEDULE"]
["(a)  THIS PRICING SCHEDULE MUST BE SUBMITTED SEPARATELY FROM THE TECHNICAL RESPONSE, failing which the BID may be DISQUALIFIED."]
["(b)  Bidder must complete/enter YELLOW cells only"]
["(c)  Unit and Line prices must be VAT EXCLUSIVE and in South African Rand (ZAR) currency."]
["(e) The price must include all cost to deliver the goods or render the service, including all applicable taxes, duty fees, logistics/delivery, storage, labour, overtime and subsistance and travel"]
["(f)  Prices that are dependent on Rate of Exchange (ROE) must use ROE indicated below, then enter in Column \"Forex %\" the percentage of the price that is ROE dependent (0% means the price is not ROE dependent)"]
[null,"Foreign currency","South African Rand (ZAR) exchange rate "]
[null,"1 US Dollar",{"$nulls":3},"Mark with an X, which ROE is applicable"]
[null,"1 Euro"]
[null,"1 Pound (UK)"]
[]
[{"$nulls":4},"YEAR 1",null,null,"YEAR 2",null,null,"YEAR 3",null,null,"TOTAL"]
["Item No","Goods/Service description","Unit of measure","Forex %","Qty ","Unit Price \n(Excl VAT)","Line Price Y1","Qty","Unit Price \n(Excl VAT)","Line Price Y2","Qty","Unit Price \n(Excl VAT)","Line Price Y3","Line Price Term \n(Excl VAT)","Forex Price portion","BRAND/MODEL","Price clarification comment"]
["1+A20A20:B32","Monthly salary c+B20:B34ost per Cleaner - Mondays to Fridays, 07:00am to 16:00pm","each",{"v":0,"d":"0%"},3,null,{"$f":"E20*F20","v":0},3,null,{"$f":"H20*I20","v":0},{"$nulls":3},{"$f":"SUM(G20,J20)","v":0},{"$f":"D20*N20","v":0}]
[2,"Monthly salary cost per Cleaning Supervisor - Mondays to Fridays, 07:00am to 16:00pm","each",{"v":0,"d":"0%"},1,null,{"$f":"F21*12","v":0},1,null,{"$f":"I21*12","v":0},{"$nulls":3},{"$f":"SUM(G21,J21)","v":0},{"$f":"D21*N21","v":0}]
[3,"Supply of cleaning and hygiene consumables (per month)","m²",{"v":0,"d":"0%"},3805.64,null,{"$f":"E22*F22","v":0},3805.64,null,{"$f":"H22*I22","v":0},{"$nulls":3},0,0]
[4,"Supply of cleaning and hygiene equipment & tools (once-off)","m²",{"v":0,"d":"0%"},3805.64,null,0,{"$nulls":6},0,0,null,"Only year one applicable - once off"]
[5,"Maintenance of Cleaning and Hygiene Equipment & Tools (per month)","m²",{"v":0,"d":"0%"},3805.64,null,{"$f":"E24*F24","v":0},3805.64,null,0,{"$nulls":3},0,{"$f":"D24*N24","v":0}]
[6,"Suppy and Installation of Liquid Handsoap Dispensers (once-off)","each",{"v":0,"d":"0%"},11,null,{"$f":"E25*F25","v":0},{"$nulls":6},0,{"$f":"D25*N25","v":0},null,"Only year one applicable - once off"]
[7,"Suppy and Installation of Hand Towel Dispensers (once-off)","each",{"v":0,"d":"0%"},11,null,0,{"$nulls":6},0,0,null,"Only year one applicable - once off"]
[8,"Supply and installation of Wall-mounted Aerosol Air Freshener Dispensers (once off) ","each",{"v":0,"d":"0%"},11,null,0,{"$nulls":6},0,0,null,"Only year one applicable - once off"]
[10,"Supply of Sanitary Bins/Units (once-off)","each",{"v":0,"d":"0%"},10,null,0,{"$nulls":6},0,0,null,"Only year one applicable - once off"]
[11,"Weekly Maintenance/Service of Sanitary Bins/Units and Disposal of Sanitary Waste (per month)","each",{"v":0,"d":"0%"},10,null,0,10,null,0,{"$nulls":3},0,0]
[null,"Deep cleaning of toilet bowls and urinals (per month)","each",{"v":0,"d":"0%"},23,null,0,23,null,0,{"$nulls":3},0,0]
[12,"Annual Deep Cleaning of Carpets/Carpeted areas (once a year)","m²",{"v":0,"d":"0%"},"3305,64",null,{"$f":"E31*F31","v":0},"3305,64",null,0,{"$nulls":3},0,{"$f":"D31*N31","v":0}]
[13,"Quarterly Deep Cleaning of Upholstered Furniture/Couches and Chairs (every 3 months)","each",{"v":0,"d":"0%"},519,null,0,519,null,0,{"$nulls":3},0,0]
[14,"Quarterly Steam Cleaning of Window Blinds (every 3 months)","m²",{"v":0,"d":"0%"},3805.64,null,0,3805.64,null,0,{"$nulls":3},0,0]
[15,"Ad hoc Emergency decontamination, disinfection or sanitization of infected office areas for COVID-19, etc. (for the duration of the contract)","m²",{"v":0,"d":"0%"},3805.64,null,0,3805.64,null,0,{"$nulls":3},0,0]
[null,"TOTAL BID PRICE  (EXCL VAT)",{"$nulls":4},{"$f":"SUBTOTAL(9,G20:G34)","v":0},null,null,{"$f":"SUBTOTAL(9,J20:J34)","v":0},{"$nulls":3},0,{"$f":"SUBTOTAL(9,O20:O34)","v":0}]
[null,"VAT (@15%)",{"$nulls":4},{"$f":"G35*0.15","v":0},null,null,{"$f":"J35*0.15","v":0},{"$nulls":3},0]
[null,"TOTAL  BID PRICE (INCL VAT)",{"$nulls":4},{"$f":"G35+G36","v":0},null,null,{"$f":"J35+J36","v":0},{"$nulls":3},0]
[]
[]
[null,"I, the bidder, confirm that the price(s) and rate(s) quoted cover all the goods and/or works specified in the bidding documents; that the price(s) or rate(s) cover all my obligations and I accept that any mistakes regarding price(s), rate(s) or calculations will be at my own risk.\n[Note: First convert to PDF, then add signature]"]
[null,null,"Name",null,"Capacity"]
[]
[null,null,"Signature (above)",null,"Date"]